Workbook

Sheet 5-Year Depreciation
B2: [Company Name]
B3: 5-Year Depreciation
B4: [Date]
B5: [Property Name being calculated]
B7: Fill out these cells except the gray cell
B8: Cost of property | E8: $500,000
B9: Recovery period (years) | E9: 5
B10: Declining balance type | E10: 200%
B11: Declining balance rate | E11: =1/RecoveryPeriod*DeclineType -> 0.40
B12: Number of months in first year of service | E12: 6
B13: Salvage value | E13: $50,000
H15: =B2&" CONFIDENTIAL" -> [Company Name] CONFIDENTIAL
C16: Straight Line | E16: Sum-of-Years' Digits | G16: Declining Balance
B17: Year | C17: Depreciation per year | D17: Accumulated depreciation | E17: Depreciation per year | F17: Accumulated depreciation | G17: Depreciation per year | H17: Accumulated depreciation
B18: 1 | C18: =C32*($E$12/12) -> $45,000.00 | D18: =SUM(C$18:C18) -> $45,000.00 | E18: =D30*($E$12/12) -> $75,000.00 | F18: =SUM(E$18:E18) -> $75,000.00 | G18: =E30 -> $30,000.00 | H18: =SUM(G$18:G18) -> $30,000.00
B19: =B18+1 -> 2 | C19: =C31 -> $90,000.00 | D19: =SUM(C$18:C19) -> $135,000.00 | E19: =D30*((12-$E$12)/12)+D31*($E$12/12) -> $135,000.00 | F19: =SUM(E$18:E19) -> $210,000.00 | G19: $168,000.00 | H19: =SUM(G$18:G19) -> $198,000.00
B20: =B19+1 -> 3 | C20: =C32 -> $90,000.00 | D20: =SUM(C$18:C20) -> $225,000.00 | E20: $105,000.00 | F20: =SUM(E$18:E20) -> $315,000.00 | G20: $100,800.00 | H20: =SUM(G$18:G20) -> $298,800.00
B21: =B20+1 -> 4 | C21: $90,000.00 | D21: =SUM(C$18:C21) -> $315,000.00 | E21: $75,000.00 | F21: =SUM(E$18:E21) -> $390,000.00 | G21: $60,480.00 | H21: =SUM(G$18:G21) -> $359,280.00
B22: =B21+1 -> 5 | C22: $90,000.00 | D22: =SUM(C$18:C22) -> $405,000.00 | E22: =D33*((12-$E$12)/12)+D34*($E$12/12) -> $45,000.00 | F22: =SUM(E$18:E22) -> $435,000.00 | G22: $60,480.00 | H22: =SUM(G$18:G22) -> $419,760.00
B23: =B22+1 -> 6 | C23: =E8-E13-SUM(C18:C22) -> $45,000.00 | D23: =SUM(C$18:C23) -> $450,000.00 | E23: $15,000.00 | F23: =SUM(E$18:E23) -> $450,000.00 | G23: $30,240.00 | H23: =SUM(G$18:G23) -> $450,000.00
B24: Total | C24: =SUBTOTAL(109,$C$18:$C$23) -> $450,000.00 | E24: =SUBTOTAL(109,$E$18:$E$23) -> $450,000.00 | G24: =SUBTOTAL(109,$G$18:$G$23) -> $450,000.00
B26: First, calculate depreciation for full years. Then prorate between two periods.
B28: FULL YEAR DEPRECIATION
B29: Full Year | C29: Straight Line | D29: Sum-of-Years'-Digits | E29: Declining Balance | F29: Remaining Balance | G29: Remaining Life (Months) | H29: Method Used
B30: 1 | C30: =($E$8-$E$13)/$E$9 -> $90,000.00 | D30: =($E$8-$E$13)*($E$9-B30+1)/($E$9*($E$9+1)/2) -> $150,000.00 | E30: =($E$8-E13)*$E$11*(E10/12) -> $30,000.00 | F30: =$E$8-E13-E30 -> $420,000.00 | G30: =(($E$9*12)-E12) -> 54 | H30: DB
B31: =B30+1 -> 2 | C31: $90,000.00 | D31: =($E$8-$E$13)*($E$9-B31+1)/($E$9*($E$9+1)/2) -> $120,000.00 | E31: =IF(H30 = "DB", F30*$E$11, F30/G30*12) -> $168,000.00 | F31: =F30-E31 -> $252,000.00 | G31: =G30-12 -> 42 | H31: =IF(H30 = "SL", "SL", IF(F30/G30*12>=F30*$E$11, "SL", "DB")) -> DB
B32: =B31+1 -> 3 | C32: $90,000.00 | D32: =($E$8-$E$13)*($E$9-B32+1)/($E$9*($E$9+1)/2) -> $90,000.00 | E32: =IF(H31 = "DB", F31*$E$11, F31/G31*12) -> $100,800.00 | F32: =F31-E32 -> $151,200.00 | G32: 30 | H32: =IF(H31 = "SL", "SL", IF(F31/G31*12>=F31*$E$11, "SL", "DB")) -> DB
B33: =B32+1 -> 4 | C33: $90,000.00 | D33: $60,000.00 | E33: $60,480.00 | F33: $90,720.00 | G33: 18 | H33: SL
B34: =B33+1 -> 5 | C34: $90,000.00 | D34: $30,000.00 | E34: $60,480.00 | F34: $30,240.00 | G34: 6 | H34: SL
B35: =B34+1 -> 6 | D35: =($E$8-$E$13)*($E$9-B35+1)/($E$9*($E$9+1)/2) -> $0.00 | E35: =F34 -> $30,240.00 | F35: $0.00 | H35: SL
B36: Total | C36: =SUBTOTAL(109,$C$30:$C$35) -> $450,000.00 | D36: =SUBTOTAL(109,$D$30:$D$35) -> $450,000.00 | E36: =SUBTOTAL(109,$E$30:$E$35) -> $450,000.00

Sheet 7-Year Depreciation
B2: ='5-Year Depreciation'!B2 -> [Company Name]
B3: 7-Year Depreciation
B4: [Date]
B5: ='5-Year Depreciation'!B5 -> [Property Name being calculated]
B7: Fill out these cells except the gray cell
B8: Cost of property | E8: ='5-Year Depreciation'!PropertyCost -> $500,000
B9: Recovery period (years) | E9: 7
B10: Declining balance type | E10: ='5-Year Depreciation'!DeclineType -> 200%
B11: Declining balance rate | E11: =1/E9*E10 -> 0.29
B12: Number of months in first year of service | E12: ='5-Year Depreciation'!MonthsInFirstYear -> 6
B13: Salvage value | E13: ='5-Year Depreciation'!SalvageValue -> $50,000
H15: =B2&" CONFIDENTIAL" -> [Company Name] CONFIDENTIAL
C16: Straight Line | E16: Sum-of-Years' Digits | G16: Declining Balance
B17: Year | C17: Depreciation per year | D17: Accumulated depreciation | E17: Depreciation per year | F17: Accumulated depreciation | G17: Depreciation per year | H17: Accumulated depreciation
B18: 1 | C18: =C32*($E$12/12) -> $32,142.86 | D18: =SUM(C$18:C18) -> $32,142.86 | E18: =D32*($E$12/12) -> $56,250.00 | F18: =SUM(E$18:E18) -> $56,250.00 | G18: =E32 -> $64,285.71 | H18: =SUM(G$18:G18) -> $64,285.71
B19: =B18+1 -> 2 | C19: =C33 -> $64,285.71 | D19: =SUM(C$18:C19) -> $96,428.57 | E19: =D32*((12-$E$12)/12)+D33*($E$12/12) -> $104,464.29 | F19: =SUM(E$18:E19) -> $160,714.29 | G19: $110,204.08 | H19: =SUM(G$18:G19) -> $174,489.80
B20: 3 | C20: $64,285.71 | D20: =SUM(C$18:C20) -> $160,714.29 | E20: $88,392.86 | F20: =SUM(E$18:E20) -> $249,107.14 | G20: $78,717.20 | H20: =SUM(G$18:G20) -> $253,207.00
B21: 4 | C21: $64,285.71 | D21: =SUM(C$18:C21) -> $225,000.00 | E21: $72,321.43 | F21: =SUM(E$18:E21) -> $321,428.57 | G21: $56,226.57 | H21: =SUM(G$18:G21) -> $309,433.57
B22: 5 | C22: $64,285.71 | D22: =SUM(C$18:C22) -> $289,285.71 | E22: $56,250.00 | F22: =SUM(E$18:E22) -> $377,678.57 | G22: $40,161.84 | H22: =SUM(G$18:G22) -> $349,595.41
B23: 6 | C23: $64,285.71 | D23: =SUM(C$18:C23) -> $353,571.43 | E23: $40,178.57 | F23: =SUM(E$18:E23) -> $417,857.14 | G23: $40,161.84 | H23: =SUM(G$18:G23) -> $389,757.24
B24: 7 | C24: $64,285.71 | D24: =SUM(C$18:C24) -> $417,857.14 | E24: $24,107.14 | F24: =SUM(E$18:E24) -> $441,964.29 | G24: $40,161.84 | H24: =SUM(G$18:G24) -> $429,919.08
B25: 8 | C25: =E8-E13-SUM(C18:C24) -> $32,142.86 | D25: =SUM(C$18:C25) -> $450,000.00 | E25: $8,035.71 | F25: =SUM(E$18:E25) -> $450,000.00 | G25: $20,080.92 | H25: =SUM(G$18:G25) -> $450,000.00
B26: TOTAL | C26: =SUM(C18:C25) -> $450,000.00 | E26: =SUM(E18:E25) -> $450,000.00 | G26: =SUM(G18:G25) -> $450,000.00
B28: First, calculate depreciation for full years. Then prorate between two periods.
B30: FULL YEAR DEPRECIATION
B31: Full Year | C31: Straight Line | D31: Sum-of-Years'-Digits | E31: Declining Balance | F31: Remaining Balance | G31: Remaining Life (Months) | H31: Method Used
B32: 1 | C32: =($E$8-$E$13)/$E$9 -> $64,285.71 | D32: =($E$8-$E$13)*($E$9-B32+1)/($E$9*($E$9+1)/2) -> $112,500.00 | E32: =($E$8-E13)*$E$11*(E12/12) -> $64,285.71 | F32: =$E$8-E13-E32 -> $385,714.29 | G32: =(($E$9*12)-E12) -> 78 | H32: DB
B33: =B32+1 -> 2 | C33: $64,285.71 | D33: $96,428.57 | E33: =IF(H32 = "DB", F32*$E$11, F32/G32*12) -> $110,204.08 | F33: =F32-E33 -> $275,510.20 | G33: =G32-12 -> 66 | H33: =IF(H32 = "SL", "SL", IF(F32/G32*12>=F32*$E$11, "SL", "DB")) -> DB
B34: 3 | C34: $64,285.71 | D34: $80,357.14 | E34: $78,717.20 | F34: $196,793.00 | G34: 54 | H34: DB
B35: 4 | C35: $64,285.71 | D35: $64,285.71 | E35: $56,226.57 | F35: $140,566.43 | G35: 42 | H35: DB
B36: 5 | C36: $64,285.71 | D36: $48,214.29 | E36: $40,161.84 | F36: $100,404.59 | G36: 30 | H36: SL
B37: 6 | C37: $64,285.71 | D37: $32,142.86 | E37: $40,161.84 | F37: $60,242.76 | G37: 18 | H37: SL
B38: 7 | C38: $64,285.71 | D38: $16,071.43 | E38: $40,161.84 | F38: $20,080.92 | G38: 6 | H38: SL
B39: 8 | D39: $0.00 | E39: =F38 -> $20,080.92 | F39: $0.00 | H39: SL
B40: TOTAL | C40: =SUM(C32:C39) -> $450,000.00 | D40: =SUM(D32:D39) -> $450,000.00 | E40: =SUM(E32:E39) -> $450,000.00

Sheet 10-Year Depreciation
B2: ='5-Year Depreciation'!B2 -> [Company Name]
B3: 10-Year Depreciation
B4: [Date]
B5: ='5-Year Depreciation'!B5 -> [Property Name being calculated]
B7: Fill out these cells except the gray cell
B8: Cost of property | E8: ='5-Year Depreciation'!PropertyCost -> $500,000
B9: Recovery period (years) | E9: 10
B10: Declining balance type | E10: ='5-Year Depreciation'!DeclineType -> 200%
B11: Declining balance rate | E11: =1/E9*E10 -> 0.20
B12: Number of months in first year of service | E12: ='5-Year Depreciation'!MonthsInFirstYear -> 6
B13: Salvage value | E13: ='5-Year Depreciation'!SalvageValue -> $50,000
H15: =B2&" CONFIDENTIAL" -> [Company Name] CONFIDENTIAL
C16: Straight Line | E16: Sum-of-Years' Digits | G16: Declining Balance
B17: Year | C17: Depreciation per year | D17: Accumulated depreciation | E17: Depreciation per year | F17: Accumulated depreciation | G17: Depreciation per year | H17: Accumulated depreciation
B18: 1 | C18: =C35*($E$12/12) -> $22,500.00 | D18: =SUM(C$18:C18) -> $22,500.00 | E18: =D35*($E$12/12) -> $40,909.09 | F18: =SUM(E$18:E18) -> $40,909.09 | G18: =E35 -> $45,000.00 | H18: =SUM(G$18:G18) -> $45,000.00
B19: =B18+1 -> 2 | C19: =C36 -> $45,000.00 | D19: =SUM(C$18:C19) -> $67,500.00 | E19: =D35*((12-$E$12)/12)+D36*($E$12/12) -> $77,727.27 | F19: =SUM(E$18:E19) -> $118,636.36 | G19: $81,000.00 | H19: =SUM(G$18:G19) -> $126,000.00
B20: 3 | C20: $45,000.00 | D20: =SUM(C$18:C20) -> $112,500.00 | E20: $69,545.45 | F20: =SUM(E$18:E20) -> $188,181.82 | G20: $64,800.00 | H20: =SUM(G$18:G20) -> $190,800.00
B21: 4 | C21: $45,000.00 | D21: =SUM(C$18:C21) -> $157,500.00 | E21: $61,363.64 | F21: =SUM(E$18:E21) -> $249,545.45 | G21: $51,840.00 | H21: =SUM(G$18:G21) -> $242,640.00
B22: 5 | C22: $45,000.00 | D22: =SUM(C$18:C22) -> $202,500.00 | E22: $53,181.82 | F22: =SUM(E$18:E22) -> $302,727.27 | G22: $41,472.00 | H22: =SUM(G$18:G22) -> $284,112.00
B23: 6 | C23: $45,000.00 | D23: =SUM(C$18:C23) -> $247,500.00 | E23: $45,000.00 | F23: =SUM(E$18:E23) -> $347,727.27 | G23: $33,177.60 | H23: =SUM(G$18:G23) -> $317,289.60
B24: 7 | C24: $45,000.00 | D24: =SUM(C$18:C24) -> $292,500.00 | E24: $36,818.18 | F24: =SUM(E$18:E24) -> $384,545.45 | G24: $29,491.20 | H24: =SUM(G$18:G24) -> $346,780.80
B25: 8 | C25: $45,000.00 | D25: =SUM(C$18:C25) -> $337,500.00 | E25: $28,636.36 | F25: =SUM(E$18:E25) -> $413,181.82 | G25: $29,491.20 | H25: =SUM(G$18:G25) -> $376,272.00
B26: 9 | C26: $45,000.00 | D26: =SUM(C$18:C26) -> $382,500.00 | E26: $20,454.55 | F26: =SUM(E$18:E26) -> $433,636.36 | G26: $29,491.20 | H26: =SUM(G$18:G26) -> $405,763.20
B27: 10 | C27: $45,000.00 | D27: =SUM(C$18:C27) -> $427,500.00 | E27: $12,272.73 | F27: =SUM(E$18:E27) -> $445,909.09 | G27: $29,491.20 | H27: =SUM(G$18:G27) -> $435,254.40
B28: 11 | C28: =E8-E13-SUM(C18:C27) -> $22,500.00 | D28: =SUM(C$18:C28) -> $450,000.00 | E28: $4,090.91 | F28: =SUM(E$18:E28) -> $450,000.00 | G28: $14,745.60 | H28: =SUM(G$18:G28) -> $450,000.00
B29: TOTAL | C29: =SUM(C18:C28) -> $450,000.00 | E29: =SUM(E18:E28) -> $450,000.00 | G29: =SUM(G18:G28) -> $450,000.00
B31: First, calculate depreciation for full years. Then prorate between two periods.
B33: FULL YEAR DEPRECIATION
B34: Full Year | C34: Straight Line | D34: Sum-of-Years'-Digits | E34: Declining Balance | F34: Remaining Balance | G34: Remaining Life (Months) | H34: Method Used
B35: 1 | C35: =($E$8-$E$13)/$E$9 -> $45,000.00 | D35: =($E$8-$E$13)*($E$9-B35+1)/($E$9*($E$9+1)/2) -> $81,818.18 | E35: =(($E$8-$E$13)*$E$11)*E12/12 -> $45,000.00 | F35: =$E$8-E13-E35 -> $405,000.00 | G35: =(($E$9*12)-E12) -> 114 | H35: DB
B36: =B35+1 -> 2 | C36: $45,000.00 | D36: $73,636.36 | E36: =IF(H36 = "DB", F35 * $E$11, F35/G35*12) -> $81,000.00 | F36: =F35-E36 -> $324,000.00 | G36: =G35-12 -> 102 | H36: =IF(H35 = "SL", "SL", IF(F35/G35*12>=F35*$E$11, "SL", "DB")) -> DB
B37: 3 | C37: $45,000.00 | D37: $65,454.55 | E37: $64,800.00 | F37: $259,200.00 | G37: 90 | H37: DB
B38: 4 | C38: $45,000.00 | D38: $57,272.73 | E38: $51,840.00 | F38: $207,360.00 | G38: 78 | H38: DB
B39: 5 | C39: $45,000.00 | D39: $49,090.91 | E39: $41,472.00 | F39: $165,888.00 | G39: 66 | H39: DB
B40: 6 | C40: $45,000.00 | D40: $40,909.09 | E40: $33,177.60 | F40: $132,710.40 | G40: 54 | H40: DB
B41: 7 | C41: $45,000.00 | D41: $32,727.27 | E41: $29,491.20 | F41: $103,219.20 | G41: 42 | H41: SL
B42: 8 | C42: $45,000.00 | D42: $24,545.45 | E42: $29,491.20 | F42: $73,728.00 | G42: 30 | H42: SL
B43: 9 | C43: $45,000.00 | D43: $16,363.64 | E43: $29,491.20 | F43: $44,236.80 | G43: 18 | H43: SL
B44: 10 | C44: $45,000.00 | D44: $8,181.82 | E44: $29,491.20 | F44: $14,745.60 | G44: 6 | H44: SL
B45: 11 | D45: $0.00 | E45: =F44 -> $14,745.60 | F45: $0.00 | H45: SL
B46: TOTAL | C46: =SUM(C35:C45) -> $450,000.00 | D46: =SUM(D35:D45) -> $450,000.00 | E46: =SUM(E35:E45) -> $450,000.00

Sheet 15-Year Depreciation
B2: ='5-Year Depreciation'!B2 -> [Company Name]
B3: 15-Year Depreciation
B4: [Date]
B5: ='5-Year Depreciation'!B5 -> [Property Name being calculated]
B7: Fill out these cells except the gray cell
B8: Cost of property | E8: ='5-Year Depreciation'!PropertyCost -> $500,000
B9: Recovery period (years) | E9: 15
B10: Declining balance type | E10: ='5-Year Depreciation'!DeclineType -> 200%
B11: Declining balance rate | E11: =1/E9*E10 -> 0.13
B12: Number of months in first year of service | E12: ='5-Year Depreciation'!MonthsInFirstYear -> 6
B13: Salvage value | E13: ='5-Year Depreciation'!SalvageValue -> $50,000
H15: =B2&" CONFIDENTIAL" -> [Company Name] CONFIDENTIAL
C16: Straight Line | E16: Sum-of-Years' Digits | G16: Declining Balance
B17: Year | C17: Depreciation per year | D17: Accumulated depreciation | E17: Depreciation per year | F17: Accumulated depreciation | G17: Depreciation per year | H17: Accumulated depreciation
B18: 1 | C18: =C40*($E$12/12) -> $15,000.00 | D18: =SUM(C$18:C18) -> $15,000.00 | E18: =D40*($E$12/12) -> $28,125.00 | F18: =SUM(E$18:E18) -> $28,125.00 | G18: =E40 -> $30,000.00 | H18: =SUM(G$18:G18) -> $30,000.00
B19: =B18+1 -> 2 | C19: =C41 -> $30,000.00 | D19: =SUM(C$18:C19) -> $45,000.00 | E19: =D40*((12-$E$12)/12)+D41*($E$12/12) -> $54,375.00 | F19: =SUM(E$18:E19) -> $82,500.00 | G19: $56,000.00 | H19: =SUM(G$18:G19) -> $86,000.00
B20: 3 | C20: $30,000.00 | D20: =SUM(C$18:C20) -> $75,000.00 | E20: $50,625.00 | F20: =SUM(E$18:E20) -> $133,125.00 | G20: $48,533.33 | H20: =SUM(G$18:G20) -> $134,533.33
B21: 4 | C21: $30,000.00 | D21: =SUM(C$18:C21) -> $105,000.00 | E21: $46,875.00 | F21: =SUM(E$18:E21) -> $180,000.00 | G21: $42,062.22 | H21: =SUM(G$18:G21) -> $176,595.56
B22: 5 | C22: $30,000.00 | D22: =SUM(C$18:C22) -> $135,000.00 | E22: $43,125.00 | F22: =SUM(E$18:E22) -> $223,125.00 | G22: $36,453.93 | H22: =SUM(G$18:G22) -> $213,049.48
B23: 6 | C23: $30,000.00 | D23: =SUM(C$18:C23) -> $165,000.00 | E23: $39,375.00 | F23: =SUM(E$18:E23) -> $262,500.00 | G23: $31,593.40 | H23: =SUM(G$18:G23) -> $244,642.88
B24: 7 | C24: $30,000.00 | D24: =SUM(C$18:C24) -> $195,000.00 | E24: $35,625.00 | F24: =SUM(E$18:E24) -> $298,125.00 | G24: $27,380.95 | H24: =SUM(G$18:G24) -> $272,023.83
B25: 8 | C25: $30,000.00 | D25: =SUM(C$18:C25) -> $225,000.00 | E25: $31,875.00 | F25: =SUM(E$18:E25) -> $330,000.00 | G25: $23,730.16 | H25: =SUM(G$18:G25) -> $295,753.99
B26: 9 | C26: $30,000.00 | D26: =SUM(C$18:C26) -> $255,000.00 | E26: $28,125.00 | F26: =SUM(E$18:E26) -> $358,125.00 | G26: $20,566.13 | H26: =SUM(G$18:G26) -> $316,320.12
B27: 10 | C27: $30,000.00 | D27: =SUM(C$18:C27) -> $285,000.00 | E27: $24,375.00 | F27: =SUM(E$18:E27) -> $382,500.00 | G27: $20,566.13 | H27: =SUM(G$18:G27) -> $336,886.26
B28: 11 | C28: $30,000.00 | D28: =SUM(C$18:C28) -> $315,000.00 | E28: $20,625.00 | F28: =SUM(E$18:E28) -> $403,125.00 | G28: $20,566.13 | H28: =SUM(G$18:G28) -> $357,452.39
B29: 12 | C29: $30,000.00 | D29: =SUM(C$18:C29) -> $345,000.00 | E29: $16,875.00 | F29: =SUM(E$18:E29) -> $420,000.00 | G29: $20,566.13 | H29: =SUM(G$18:G29) -> $378,018.53
B30: 13 | C30: $30,000.00 | D30: =SUM(C$18:C30) -> $375,000.00 | E30: $13,125.00 | F30: =SUM(E$18:E30) -> $433,125.00 | G30: $20,566.13 | H30: =SUM(G$18:G30) -> $398,584.66
B31: 14 | C31: $30,000.00 | D31: =SUM(C$18:C31) -> $405,000.00 | E31: $9,375.00 | F31: =SUM(E$18:E31) -> $442,500.00 | G31: $20,566.13 | H31: =SUM(G$18:G31) -> $419,150.80
B32: 15 | C32: $30,000.00 | D32: =SUM(C$18:C32) -> $435,000.00 | E32: $5,625.00 | F32: =SUM(E$18:E32) -> $448,125.00 | G32: $20,566.13 | H32: =SUM(G$18:G32) -> $439,716.93
B33: 16 | C33: =E8-E13-SUM(C18:C32) -> $15,000.00 | D33: =SUM(C$18:C33) -> $450,000.00 | E33: $1,875.00 | F33: =SUM(E$18:E33) -> $450,000.00 | G33: $10,283.07 | H33: =SUM(G$18:G33) -> $450,000.00
B34: TOTAL | C34: =SUM(C18:C33) -> $450,000.00 | E34: =SUM(E18:E33) -> $450,000.00 | G34: =SUM(G18:G33) -> $450,000.00
B36: First, calculate depreciation for full years. Then prorate between two periods.
B38: FULL YEAR DEPRECIATION
B39: Full Year | C39: Straight Line | D39: Sum-of-Years'-Digits | E39: Declining Balance | F39: Remaining Balance | G39: Remaining Life (Months) | H39: Method Used
B40: 1 | C40: =($E$8-$E$13)/$E$9 -> $30,000.00 | D40: =($E$8-$E$13)*($E$9-B40+1)/($E$9*($E$9+1)/2) -> $56,250.00 | E40: =(($E$8-E13)*$E$11) * E12/12 -> $30,000.00 | F40: =$E$8-E13-E40 -> $420,000.00 | G40: =(($E$9*12)-E12) -> 174 | H40: DB
B41: =B40+1 -> 2 | C41: $30,000.00 | D41: $52,500.00 | E41: =IF(H41="DB", F40*$E$11, F40/G40*12) -> $56,000.00 | F41: =F40-E41 -> $364,000.00 | G41: =G40-12 -> 162 | H41: =IF(H40 = "SL", "SL", IF(F40/G40*12>=F40*$E$11, "SL", "DB")) -> DB
B42: 3 | C42: $30,000.00 | D42: $48,750.00 | E42: $48,533.33 | F42: $315,466.67 | G42: 150 | H42: DB
B43: 4 | C43: $30,000.00 | D43: $45,000.00 | E43: $42,062.22 | F43: $273,404.44 | G43: 138 | H43: DB
B44: 5 | C44: $30,000.00 | D44: $41,250.00 | E44: $36,453.93 | F44: $236,950.52 | G44: 126 | H44: DB
B45: 6 | C45: $30,000.00 | D45: $37,500.00 | E45: $31,593.40 | F45: $205,357.12 | G45: 114 | H45: DB
B46: 7 | C46: $30,000.00 | D46: $33,750.00 | E46: $27,380.95 | F46: $177,976.17 | G46: 102 | H46: DB
B47: 8 | C47: $30,000.00 | D47: $30,000.00 | E47: $23,730.16 | F47: $154,246.01 | G47: 90 | H47: DB
B48: 9 | C48: $30,000.00 | D48: $26,250.00 | E48: $20,566.13 | F48: $133,679.88 | G48: 78 | H48: SL
B49: 10 | C49: $30,000.00 | D49: $22,500.00 | E49: $20,566.13 | F49: $113,113.74 | G49: 66 | H49: SL
B50: 11 | C50: $30,000.00 | D50: $18,750.00 | E50: $20,566.13 | F50: $92,547.61 | G50: 54 | H50: SL
B51: 12 | C51: $30,000.00 | D51: $15,000.00 | E51: $20,566.13 | F51: $71,981.47 | G51: 42 | H51: SL
B52: 13 | C52: $30,000.00 | D52: $11,250.00 | E52: $20,566.13 | F52: $51,415.34 | G52: 30 | H52: SL
B53: 14 | C53: $30,000.00 | D53: $7,500.00 | E53: $20,566.13 | F53: $30,849.20 | G53: 18 | H53: SL
B54: 15 | C54: $30,000.00 | D54: $3,750.00 | E54: $20,566.13 | F54: $10,283.07 | G54: 6 | H54: SL
B55: 16 | D55: $0.00 | E55: =F54 -> $10,283.07 | F55: $0.00 | H55: SL
B56: TOTAL | C56: =SUM(C40:C55) -> $450,000.00 | D56: =SUM(D40:D55) -> $450,000.00 | E56: =SUM(E40:E55) -> $450,000.00
